fUST/lending_fUST_20250123
["ID","MTS","AMOUNT","RATE_DAILY","PERIOD"]
[350037537,1737587437866,-3301.51900872,0.00019115,2]
[350037540,1737587437877,-1801.82496667,0.00019115,2]
[350037542,1737587437886,-500.0,0.00019177,2]
[350037544,1737587437895,-195.35612012,0.00019177,2]
[350037546,1737587437904,-77.77222888,0.00019177,2]
[350037548,1737587437916,-422.22777112,0.00019177,2]
[350037550,1737587437928,-458.92628205,0.00019177,2]
[350037552,1737587437937,-500.0,0.00019178,2]
[350037554,1737587437946,-504.1844452,0.00019178,2]
[350037556,1737587437955,-471.86836813,0.00019178,2]
[350037570,1737587438074,-500.0,0.00019178,2]
[350037572,1737587438085,-500.0,0.00019178,2]
[350037574,1737587438094,-500.0,0.00019178,2]
[350037576,1737587438104,-500.0,0.00019178,2]
[350037578,1737587438115,-500.0,0.00019178,2]
[350037580,1737587438126,-500.0,0.00019178,2]
[350037582,1737587438136,-501.3537956,0.00019178,2]
[350037584,1737587438145,-500.0,0.00019178,2]
[350037586,1737587438154,-500.0,0.00019178,2]
[350037588,1737587438164,-500.0,0.00019178,2]
[350037590,1737587438174,-502.94856956,0.00019178,2]
[350037592,1737587438185,-500.0,0.00019178,2]
[350037594,1737587438195,-327.27556118,0.00019178,2]
[350037596,1737587438204,-500.0,0.00019178,2]
[350037598,1737587438213,-500.0,0.00019178,2]
[350037600,1737587438222,-709.93,0.00019178,2]
[350037602,1737587438231,-438.68859989,0.00019178,2]
[350037604,1737587438241,-612.23,0.00019178,2]
[350037606,1737587438250,-368.34,0.00019178,2]
[350037608,1737587438259,-500.0,0.00019178,2]
[350037610,1737587438269,-500.0,0.00019178,2]
[350037613,1737587438279,-500.0,0.00019178,2]
[350037615,1737587438287,-500.0,0.00019178,2]
[350037617,1737587438297,-504.37088024,0.00019178,2]
[350037619,1737587438306,-505.03703532,0.00019178,2]
[350037621,1737587438316,-596.44976179,0.00019178,2]
[350037623,1737587438328,-36.03023821,0.00019178,2]
[350037625,1737587438338,-500.0,0.00019178,2]
[350037627,1737587438347,-502.87070177,0.00019178,2]
[350037629,1737587438357,-506.3224516,0.00019178,2]
[350037631,1737587438366,-510.66,0.00019178,2]
[350037633,1737587438375,-500.0,0.00019178,2]
[350037635,1737587438385,-502.97253892,0.00019178,2]
[350037637,1737587438394,-504.20405113,0.00019178,2]
[350037639,1737587438404,-500.0,0.00019178,2]
[350037641,1737587438413,-500.0,0.00019178,2]
[350037643,1737587438422,-500.0,0.00019178,2]
[350037645,1737587438433,-500.0,0.00019178,2]
[350037647,1737587438442,-500.0,0.00019178,2]
[350037649,1737587438451,-500.0,0.00019178,2]
[350037651,1737587438461,-500.0,0.00019178,2]
[350037653,1737587438470,-500.0,0.00019178,2]
[350037655,1737587438480,-500.0,0.00019178,2]
[350037658,1737587438490,-500.0,0.00019178,2]
[350037660,1737587438499,-500.0,0.00019178,2]
[350037661,1737587438508,-500.0,0.00019178,2]
[350037663,1737587438518,-500.0,0.00019178,2]
[350037665,1737587438527,-500.0,0.00019178,2]
[350037667,1737587438536,-500.0,0.00019178,2]
[350037669,1737587438546,-500.0,0.00019178,2]
[350037671,1737587438556,-500.0,0.00019178,2]
[350037673,1737587438566,-500.0,0.00019178,2]
[350037675,1737587438575,-500.0,0.00019178,2]
[350037677,1737587438584,-773.75,0.00019178,2]
[350037680,1737587438594,-571.08,0.00019178,2]
[350037682,1737587438604,-500.0,0.00019178,2]
[350037684,1737587438614,-204.29,0.00019178,2]
[350037686,1737587438623,-418.21,0.00019178,2]
[350037688,1737587438632,-755.54,0.00019178,2]
[350037690,1737587438641,-21529.06451668,0.00019178,2]
[350037693,1737587438662,-935.99548332,0.00019178,2]
[350037695,1737587438672,-537.84,0.00019178,2]
[350037697,1737587438683,-1607.48,0.00019178,2]
[350037699,1737587438692,-500.0,0.00019178,2]
[350037701,1737587438701,-2306.64,0.00019178,2]
[350037703,1737587438710,-906.51,0.00019178,2]
[350037706,1737587438723,-660.72,0.00019178,2]
[350037708,1737587438732,-6070.79192618,0.00019178,2]
[350037710,1737587438745,-1574.79807382,0.00019178,2]
[350037712,1737587438754,-1421.87,0.00019178,2]
[350037714,1737587438763,-631.91,0.00019178,2]
[350037716,1737587438773,-500.0,0.00019178,2]
[350037718,1737587438783,-526.75,0.00019178,2]
[350037720,1737587438791,-500.0,0.00019178,2]
[350037722,1737587438801,-500.0,0.00019178,2]
[350037724,1737587438810,-500.0,0.00019178,2]
[350037726,1737587438819,-500.0,0.00019178,2]
[350037728,1737587438828,-383.91179852,0.00019178,2]
[350037730,1737587438839,-116.08820148,0.00019178,2]
[350037732,1737587438849,-500.0,0.00019178,2]
[350037734,1737587438857,-500.0,0.00019178,2]
[350037736,1737587438867,-996.1,0.00019178,2]
[350037738,1737587438876,-500.0,0.00019178,2]
[350037740,1737587438886,-500.0,0.00019178,2]
[350037742,1737587438895,-500.0,0.00019178,2]
[350037744,1737587438905,-500.0,0.00019178,2]
[350037746,1737587438914,-500.0,0.00019178,2]
[350037748,1737587438924,-3209.28509905,0.00019178,2]
[350037751,1737587438938,-323.1805532,0.00019178,2]
[350037753,1737587438949,-301.30373897,0.00019178,2]
[350037755,1737587438960,-701.79999157,0.00019178,2]
[350037758,1737587438978,-6389.41176823,0.00019178,2]
[350037906,1737587440388,-1400.07884898,0.00019178,2]
[350037908,1737587440398,-1345.91,0.00019178,2]
[350037909,1737587440408,-500.0,0.00019178,2]
[350037910,1737587440418,-591.03927607,0.00019178,2]
[350037911,1737587440434,-3698.93072393,0.00019178,2]
[350037912,1737587440445,-500.0,0.00019178,2]
[350037913,1737587440455,-500.0,0.00019178,2]
[350037914,1737587440464,-886.57,0.00019178,2]
[350037915,1737587440475,-630.06,0.00019178,2]
[350037916,1737587440485,-500.0,0.00019178,7]
[350037917,1737587440495,-500.0,0.00019178,2]
[350037918,1737587440505,-1619.12,0.00019178,2]
[350037919,1737587440515,-280.5919445,0.00019178,2]
[350037920,1737587440524,-663.53,0.00019178,2]
[350037921,1737587440534,-501.85479087,0.00019178,2]
[350037922,1737587440544,-500.0,0.00019178,2]
[350037923,1737587440553,-1917.74,0.00019178,2]
[350037925,1737587440563,-507.11,0.00019178,2]
[350037927,1737587440572,-500.0,0.00019178,2]
[350037929,1737587440582,-500.0,0.00019178,2]
[350037931,1737587440592,-601.48,0.00019178,2]
[350037933,1737587440601,-500.0,0.00019178,2]
[350037935,1737587440611,-817.37,0.00019178,2]
[350037937,1737587440620,-500.0,0.00019178,2]
[350037939,1737587440630,-500.0,0.00019178,2]
[350037941,1737587440639,-500.0,0.00019178,2]
[350037943,1737587440649,-414.4185829,0.00019178,2]
[350037945,1737587440659,-834.3,0.00019178,2]
[350037947,1737587440670,-500.0,0.00019178,2]
[350037949,1737587440682,-6007.3,0.00019178,2]
[350037951,1737587440693,-619.71,0.00019178,2]
[350037953,1737587440703,-1397.97,0.00019178,2]
[350037955,1737587440712,-500.0,0.00019178,2]
[350037958,1737587440723,-1255.03,0.00019178,2]
[350037960,1737587440734,-1129.66,0.00019178,2]
[350037962,1737587440744,-1373.6,0.00019178,2]
[350037964,1737587440754,-500.0,0.00019178,2]
[350037966,1737587440765,-587.11,0.00019178,2]
[350037968,1737587440774,-167.192673,0.00019178,2]
[350037970,1737587440784,-151.0,0.00019198,2]
[350037972,1737587440793,-253.4166555,0.00019199,2]
[350037974,1737587440803,-3312.84452718,0.000192,5]
[350037976,1737587440812,-835.57014233,0.000192,5]
[350037978,1737587440821,-60085.12013028,0.000192,15]
[350037980,1737587440833,-29517.95454316,0.000192,15]
[350039995,1737587550704,160.0,0.00022726,120]
[350039997,1737587576714,202.171289,0.00013973,2]
[350040000,1737587610695,160.0,0.00021855,120]
[350040001,1737587670696,160.0,0.00022981,120]
[350040004,1737587730682,160.0,0.00021955,120]
[350040005,1737587850829,160.0,0.00022064,120]
[350040006,1737587910717,160.0,0.00023588,120]
[350040012,1737588449325,200.318989,0.00013973,2]
[350040020,1737588547137,-327.36166306,0.00017112,2]
[350040059,1737588638529,-2115.40416158,0.00016802,2]
[350040061,1737588638538,-170.51271977,0.0001697,2]
[350040108,1737588638991,-129.48728023,0.0001697,2]
[350040110,1737588639001,-21640.76554521,0.00016971,2]
[350040118,1737588639070,-8854.77797439,0.00016971,2]
[350040120,1737588639079,-333.12256181,0.00017012,2]
[350040122,1737588639089,-11.67586994,0.00017112,2]
[350040124,1737588639098,-24900.0,0.00017558,2]
[350040126,1737588639108,-2153.49953401,0.00018,7]
[350040870,1737588646367,-138.64713498,0.00018,7]
[350040872,1737588646378,-333.1225618,0.00018018,2]
[350040874,1737588646391,-182.32714222,0.0001814,2]
[350040876,1737588646401,-947.70377174,0.00018188,2]
[350041610,1737589049770,208.0,0.00024197,120]
[350041612,1737589355778,198.561354,0.00013973,2]
[350041616,1737589761130,-169.518766,0.00016874,2]
[350041617,1737589761152,-21.84193625,0.00017045,2]
[350041686,1737589838550,-147.67682975,0.00017045,2]
[350041688,1737589838559,-164.44636121,0.00017918,2]
[350041700,1737589838666,-266.78369511,0.00017918,2]
[350041702,1737589838677,-7445.3861809,0.00017918,2]
[350041704,1737589838689,-1872.84192768,0.00017918,2]
[350041706,1737589838699,-300.0,0.0001793,2]
[350041708,1737589838708,-249.84192135,0.00017931,2]
[350041711,1737589838718,-9687.46620343,0.00017996,2]
[350041713,1737589838729,-1256.34000017,0.00017996,2]
[350041715,1737589838740,-7206.12206134,0.00017996,2]
[350041912,1737589840810,-358.95284397,0.00017996,2]
[350042195,1737589843644,-1368.39220039,0.00017996,2]
[350042198,1737589843655,-516.10404272,0.00018,5]
[350042202,1737589843666,-36311.38843722,0.00018,2]
[350042511,1737589846526,-982.31807,0.00018,2]
[350042525,1737589846644,-14180.46,0.00018,2]
[350046509,1737590378234,196.897218,0.00013973,2]
[350046510,1737590491816,160.0,0.00022322,120]
[350046511,1737590610776,160.0,0.00022308,120]
[350046512,1737590670709,160.0,0.0002197,120]
[350046513,1737590731484,160.0,0.00022662,120]
[350046514,1737590960124,-900.62078381,0.00015425,2]
[350046515,1737590960145,-900.62078381,0.00015581,2]
[350046516,1737590960165,-2078.00610573,0.00016549,2]
[350046517,1737590960188,-4497.25822647,0.00016629,2]
[350046518,1737590970098,-687.37327379,0.00016463,2]
[350046519,1737590970122,-8747.17210993,0.00016629,2]
[350046520,1737590970144,-1186.49527581,0.00016762,2]
[350046593,1737591032911,-43.05745479,0.00016762,2]
[350046595,1737591032921,-193.878431,0.00016819,2]
[350046597,1737591032931,-194.314609,0.00016867,2]
[350046599,1737591032942,-706.5297228,0.000174,2]
[350046601,1737591032952,-838.55176671,0.00017568,2]
[350047152,1737591038809,-89.54377978,0.00017568,2]
[350047154,1737591038819,-301.50185147,0.000179,2]
[350047155,1737591038828,-300.0,0.00017999,2]
[350047157,1737591038838,-973.82419903,0.00018,2]
[350047159,1737591038849,-2063.61009972,0.00018,2]
[350047161,1737591038861,-3369.082,0.00018,2]
[350047162,1737591038914,-300.0,0.00018,2]
[350047419,1737591043641,-12012.44265097,0.00018,2]
[350047426,1737591043695,-460.0,0.00018,2]
[350048608,1737591262691,187.052357,0.00013973,2]
[350048610,1737591648217,4897.35,0.00024,120]
[350048611,1737591648248,95102.65,0.00024,120]
[350048619,1737592128579,185.972598,0.00013973,2]
[350048645,1737592232013,-436.292,0.00015796,2]
[350048646,1737592232023,-89.62557582,0.00015956,2]
[350048647,1737592232033,-346.66642418,0.00015956,2]
[350048648,1737592232043,-200.61406489,0.00016,2]
[350048649,1737592232052,-356.152877,0.00016442,2]
[350048650,1737592232062,-208.44996562,0.000167,2]
[350048651,1737592232071,-485.657,0.0001728,2]
[350048652,1737592232080,-300.0,0.00017308,2]
[350048653,1737592232090,-918.34644664,0.00017309,2]
[350048654,1737592232125,-16593.18235275,0.00017309,2]
[350048655,1737592232137,-1109.15351499,0.00017309,2]
[350048656,1737592232148,-66.03231552,0.00017309,2]
[350048657,1737592232157,-252.225,0.000176,2]
[350048658,1737592232167,-2776.98521069,0.00018,2]
[350048714,1737592237991,-409.75397879,0.00017136,2]
[350048721,1737592238049,-765.43185172,0.00017136,2]
[350048723,1737592238059,-11069.8983873,0.00018,2]
[350048725,1737592238068,-2985.9676943,0.00018,2]
[350048728,1737592238078,-3733.39555328,0.00018188,2]
[350048921,1737592240120,-678.01617491,0.00018188,2]
[350048923,1737592240130,-420.0,0.00018898,2]
[350048925,1737592240139,-500.0,0.00018903,2]
[350048927,1737592240148,-739.59999,0.00018904,2]
[350048929,1737592240157,-155.05,0.00018904,2]
[350048931,1737592240167,-182.32714222,0.00019,2]
[350048933,1737592240176,-2305.0,0.00019012,2]
[350048936,1737592240186,-150.502,0.00019012,2]
[350048938,1737592240195,-395.0,0.00019012,2]
[350048940,1737592240205,-2059.0,0.00019012,2]
[350048942,1737592240214,-1000.0,0.00019077,2]
[350048944,1737592240223,-1767.50469287,0.000191,2]
[350049205,1737592242849,-1232.49530713,0.000191,2]
[350049206,1737592242859,-151.0,0.000191,2]
[350049209,1737592242869,-418.584466,0.000191,2]
[350049210,1737592242879,-418.584466,0.000191,2]
[350049212,1737592242888,-151.0,0.000191,2]
[350049214,1737592242897,-151.0,0.000191,2]
[350049216,1737592242906,-4.67144391,0.000191,2]
[350049219,1737592242918,-146.32855609,0.000191,2]
[350049222,1737592242927,-396.270538,0.000191,2]
[350049225,1737592242937,-396.270538,0.000191,2]
[350049228,1737592242946,-151.0,0.000191,2]
[350049230,1737592242955,-187.984808,0.000191,2]
[350049231,1737592242964,-151.0,0.000191,2]
[350049233,1737592242974,-151.0,0.000191,2]
[350049235,1737592242987,-220.601534,0.000191,2]
[350049237,1737592242996,-220.601534,0.000191,2]
[350049239,1737592243005,-151.0,0.000191,2]
[350049241,1737592243015,-151.0,0.000191,2]
[350049243,1737592243024,-176.596046,0.000191,2]
[350049245,1737592243034,-151.0,0.000191,2]
[350049247,1737592243044,-176.596046,0.000191,2]
[350049249,1737592243053,-151.0,0.000191,2]
[350049251,1737592243063,-151.0,0.000191,2]
[350049253,1737592243073,-151.0,0.000191,2]
[350049255,1737592243082,-4593.00957786,0.000191,2]
[350049257,1737592243091,-151.0,0.000191,2]
[350049259,1737592243101,-151.0,0.000191,2]
[350049261,1737592243111,-151.0,0.000191,2]
[350049263,1737592243121,-151.0,0.000191,2]
[350049265,1737592243130,-432.679902,0.000191,2]
[350049267,1737592243139,-432.679902,0.000191,2]
[350049269,1737592243149,-599.761711,0.000191,2]
[350049271,1737592243158,-3000.0,0.0001911,2]
[350049273,1737592243168,-151.0,0.0001911,2]
[350049275,1737592243177,-151.0,0.0001911,2]
[350049277,1737592243187,-152.251988,0.0001911,2]
[350049279,1737592243197,-299.405982,0.0001911,2]
[350049281,1737592243206,-151.0,0.0001911,2]
[350049283,1737592243216,-151.0,0.0001911,2]
[350049285,1737592243225,-151.0,0.0001911,2]
[350049287,1737592243237,-151.0,0.0001911,2]
[350049289,1737592243247,-418.584466,0.0001911,2]
[350049291,1737592243257,-418.584466,0.0001911,2]
[350049293,1737592243266,-151.0,0.0001911,2]
[350049295,1737592243275,-151.0,0.0001911,2]
[350049297,1737592243285,-151.0,0.0001911,2]
[350049299,1737592243295,-396.270538,0.0001911,2]
[350049301,1737592243305,-396.270538,0.0001911,2]
[350049303,1737592243315,-151.0,0.0001911,2]
[350049305,1737592243326,-151.0,0.0001911,2]
[350049307,1737592243336,-151.0,0.0001911,2]
[350049309,1737592243345,-220.601534,0.0001911,2]
[350049311,1737592243355,-220.601534,0.0001911,2]
[350049313,1737592243366,-151.0,0.0001911,2]
[350049315,1737592243375,-151.0,0.0001911,2]
[350049318,1737592243384,-176.596046,0.0001911,2]
[350049320,1737592243394,-151.0,0.0001911,2]
[350049322,1737592243403,-176.596046,0.0001911,2]
[350049324,1737592243413,-151.0,0.0001911,2]
[350049326,1737592243422,-151.0,0.0001911,2]
[350049328,1737592243431,-230.901446,0.0001911,2]
[350049329,1737592243440,-151.0,0.0001911,2]
[350049331,1737592243450,-151.0,0.0001911,2]
[350049333,1737592243460,-151.0,0.0001911,2]
[350049336,1737592243470,-151.0,0.0001911,2]
[350049337,1737592243481,-432.679902,0.0001911,2]
[350049339,1737592243490,-432.679902,0.0001911,2]
[350049341,1737592243499,-599.761711,0.0001911,2]
[350049344,1737592243510,-151.0,0.00019111,2]
[350049346,1737592243519,-151.0,0.00019111,2]
[350049348,1737592243529,-151.0,0.00019111,2]
[350049350,1737592243538,-298.38381,0.00019111,2]
[350049352,1737592243547,-155.5835,0.00019111,2]
[350049353,1737592243556,-151.0,0.00019111,2]
[350049355,1737592243567,-151.0,0.00019111,2]
[350049357,1737592243575,-418.584466,0.00019111,2]
[350049359,1737592243587,-418.584466,0.00019111,2]
[350049361,1737592243597,-151.0,0.00019111,2]
[350049363,1737592243607,-151.0,0.00019111,2]
[350049365,1737592243616,-151.0,0.00019111,2]
[350049367,1737592243625,-396.270538,0.00019111,2]
[350049369,1737592243635,-396.270538,0.00019111,2]
[350049371,1737592243645,-151.0,0.00019111,2]
[350049373,1737592243655,-151.0,0.00019111,2]
[350049375,1737592243664,-151.0,0.00019111,2]
[350049377,1737592243674,-220.601534,0.00019111,2]
[350049379,1737592243684,-220.601534,0.00019111,2]
[350049381,1737592243693,-151.0,0.00019111,2]
[350049383,1737592243703,-151.0,0.00019111,2]
[350049385,1737592243712,-151.0,0.00019111,2]
[350049387,1737592243722,-151.0,0.00019111,2]
[350049389,1737592243732,-176.596046,0.00019111,2]
[350049391,1737592243741,-151.0,0.00019111,2]
[350049393,1737592243750,-176.596046,0.00019111,2]
[350049395,1737592243759,-151.0,0.00019111,2]
[350049397,1737592243768,-157.70741481,0.00019111,2]
[350049599,1737592245739,-1918.121515,0.00018919,2]
[350049600,1737592245750,-536.0,0.00019012,2]
[350049602,1737592245759,-599.761711,0.000191,2]
[350049604,1737592245768,-599.761711,0.0001911,2]
[350049606,1737592245778,-18.88863119,0.00019111,2]
[350049608,1737592245788,-176.596046,0.00019111,2]
[350049610,1737592245797,-151.0,0.00019111,2]
[350049612,1737592245807,-151.0,0.00019111,2]
[350049614,1737592245817,-151.0,0.00019111,2]
[350049616,1737592245826,-151.0,0.00019111,2]
[350049618,1737592245836,-151.0,0.00019111,2]
[350049620,1737592245845,-151.0,0.00019111,2]
[350049622,1737592245855,-151.0,0.00019111,2]
[350049624,1737592245865,-151.0,0.00019111,2]
[350049627,1737592245874,-223.442114,0.00019111,2]
[350049629,1737592245884,-432.679902,0.00019111,2]
[350049631,1737592245893,-432.679902,0.00019111,2]
[350049632,1737592245902,-432.679902,0.00019111,2]
[350049635,1737592245912,-432.679902,0.00019111,2]
[350049637,1737592245921,-599.761711,0.00019111,2]
[350049639,1737592245931,-599.761711,0.00019111,2]
[350049641,1737592245941,-599.761711,0.00019111,2]
[350049643,1737592245950,-599.761711,0.00019111,2]
[350049645,1737592245959,-3468.77812181,0.00019111,2]
[350051582,1737592623545,2000.0,0.00024,120]
[350051586,1737593308659,193.212368,0.00013973,2]
[350051757,1737593438143,-166.0,0.0001602,2]
[350051759,1737593438153,-166.0,0.00016182,2]
[350051761,1737593438163,-317.8,0.00016922,2]
[350052282,1737593443182,-443.2479123,0.00016752,2]
[350052284,1737593443192,-443.2479123,0.00016922,2]
[350052286,1737593443203,-276.6047141,0.00017188,2]
[350052288,1737593443213,-166.0,0.00017808,2]
[350052290,1737593443222,-20.92763193,0.00017833,2]
[350052562,1737593446240,-279.07236807,0.00017833,2]
[350052563,1737593446249,-18160.1443356,0.00017834,2]
[350052565,1737593446259,-359.09472802,0.00017972,2]
[350052567,1737593446268,-18935.4178593,0.00018048,2]
[350052569,1737593446277,-502.301,0.0001815,2]
[350052571,1737593446287,-160.0,0.00018556,3]
[350052572,1737593446297,-160.0,0.00018556,5]
[350052574,1737593446306,-155.11,0.000186,2]
[350052576,1737593446316,-359.09472799,0.00018841,2]
[350052578,1737593446326,-164.0,0.00018845,2]
[350052579,1737593446335,-164.0,0.00018845,2]
[350052581,1737593446344,-164.0,0.00018845,2]
[350052583,1737593446354,-500.0,0.00018903,2]
[350052585,1737593446363,-164.0,0.00018929,2]
[350052586,1737593446372,-167.47,0.00018929,2]
[350052587,1737593446381,-2059.0,0.00018978,2]
[350052589,1737593446391,-536.0,0.00018978,2]
[350052591,1737593446401,-2305.0,0.00018978,2]
[350052593,1737593446410,-153.0,0.00018978,2]
[350052594,1737593446420,-395.0,0.00018978,2]
[350052595,1737593446429,-297.47270814,0.00019011,2]
[350052597,1737593446439,-157.82,0.00019057,2]
[350052599,1737593446448,-4845.63770218,0.000191,2]
[350052601,1737593446457,-1599.95962515,0.00019111,2]
[350052602,1737593446466,-3000.0,0.0001912,2]
[350052604,1737593446476,-3000.0,0.0001913,2]
[350052606,1737593446485,-151.0,0.0001913,2]
[350052608,1737593446494,-151.0,0.0001913,2]
[350052610,1737593446504,-3000.0,0.0001914,2]
[350052611,1737593446513,-3000.0,0.0001915,2]
[350052613,1737593446522,-151.0,0.0001915,2]
[350052615,1737593446530,-151.0,0.0001915,2]
[350052617,1737593446540,-151.0,0.0001915,2]
[350052619,1737593446550,-151.0,0.0001915,2]
[350052621,1737593446560,-259.607942,0.0001915,2]
[350052623,1737593446569,-259.607942,0.0001915,2]
[350052625,1737593446578,-151.0,0.0001915,2]
[350052627,1737593446587,-359.857026,0.0001915,2]
[350052629,1737593446597,-359.857026,0.0001915,2]
[350052631,1737593446606,-151.0,0.0001915,2]
[350052633,1737593446615,-277.389377,0.0001915,2]
[350052635,1737593446625,-277.389377,0.0001915,2]
[350052637,1737593446634,-151.0,0.0001915,2]
[350052639,1737593446644,-151.0,0.0001915,2]
[350052641,1737593446655,-151.0,0.0001915,2]
[350052643,1737593446664,-293.009126,0.0001915,2]
[350052645,1737593446674,-293.009126,0.0001915,2]
[350052647,1737593446683,-151.0,0.0001915,2]
[350052649,1737593446693,-151.0,0.0001915,2]
[350052651,1737593446703,-154.421073,0.0001915,2]
[350052652,1737593446712,-154.421073,0.0001915,2]
[350052653,1737593446721,-3000.0,0.0001916,2]
[350052654,1737593446731,-151.0,0.0001916,2]
[350052655,1737593446740,-151.0,0.0001916,2]
[350052656,1737593446750,-3000.0,0.0001917,2]
[350052657,1737593446759,-151.0,0.0001917,2]
[350052658,1737593446769,-151.0,0.00019172,2]
[350052659,1737593446778,-151.0,0.00019172,2]
[350052660,1737593446787,-151.0,0.00019172,2]
[350052661,1737593446800,-169.792078,0.00019172,2]
[350052662,1737593446810,-151.0,0.00019172,2]
[350052663,1737593446819,-259.607942,0.00019172,2]
[350052664,1737593446829,-259.607942,0.00019172,2]
[350052665,1737593446838,-151.0,0.00019172,2]
[350052666,1737593446848,-359.857026,0.00019172,2]
[350052667,1737593446857,-359.857026,0.00019172,2]
[350052668,1737593446867,-151.0,0.00019172,2]
[350052669,1737593446876,-277.389377,0.00019172,2]
[350052670,1737593446885,-277.389377,0.00019172,2]
[350052671,1737593446895,-151.0,0.00019172,2]
[350052672,1737593446904,-151.0,0.00019172,2]
[350052673,1737593446914,-151.0,0.00019172,2]
[350052674,1737593446923,-293.009126,0.00019172,2]
[350052675,1737593446933,-293.009126,0.00019172,2]
[350052677,1737593446948,-151.0,0.00019172,2]
[350052678,1737593446957,-174.05181,0.00019172,2]
[350052680,1737593446967,-154.421073,0.00019172,2]
[350052681,1737593446978,-154.421073,0.00019172,2]
[350052683,1737593446987,-500.0,0.00019173,2]
[350052685,1737593446996,-581.3157472,0.00019173,2]
[350052687,1737593447007,-500.0,0.00019173,2]
[350052689,1737593447017,-500.0,0.00019173,2]
[350052691,1737593447026,-500.0,0.00019173,2]
[350052693,1737593447035,-500.0,0.00019173,2]
[350052695,1737593447045,-500.0,0.00019173,2]
[350052697,1737593447054,-334.30911666,0.00019173,2]
[350052699,1737593447067,-500.0,0.00019173,2]
[350052701,1737593447076,-500.0,0.00019173,2]
[350052703,1737593447086,-500.0,0.00019173,2]
[350052705,1737593447095,-500.0,0.00019173,2]
[350052707,1737593447105,-500.99679196,0.00019173,2]
[350052710,1737593447115,-151.0,0.00019173,2]
[350052711,1737593447123,-151.0,0.00019173,2]
[350052714,1737593447133,-151.0,0.00019173,2]
[350052715,1737593447143,-151.0,0.00019173,2]
[350052717,1737593447152,-151.0,0.00019173,2]
[350052720,1737593447162,-259.607942,0.00019173,2]
[350052722,1737593447171,-259.607942,0.00019173,2]
[350052724,1737593447181,-151.0,0.00019173,2]
[350052726,1737593447190,-359.857026,0.00019173,2]
[350052728,1737593447200,-359.857026,0.00019173,2]
[350052730,1737593447209,-151.0,0.00019173,2]
[350052732,1737593447218,-277.389377,0.00019173,2]
[350052734,1737593447227,-277.389377,0.00019173,2]
[350052736,1737593447237,-151.0,0.00019173,2]
[350052738,1737593447246,-151.0,0.00019173,2]
[350052739,1737593447255,-151.0,0.00019173,2]
[350052741,1737593447265,-293.009126,0.00019173,2]
[350052744,1737593447274,-293.009126,0.00019173,2]
[350052746,1737593447284,-151.0,0.00019173,2]
[350052748,1737593447293,-154.421073,0.00019173,2]
[350052749,1737593447302,-154.421073,0.00019173,2]
[350052751,1737593447312,-151.0,0.00019173,2]
[350052753,1737593447321,-151.0,0.00019173,2]
[350052755,1737593447332,-3118.2498383,0.00019176,5]
[350052758,1737593447342,-5556.28281217,0.00019177,5]
[350052759,1737593447351,-151.0,0.00019177,2]
[350052762,1737593447360,-151.0,0.00019177,2]
[350052764,1737593447370,-151.0,0.00019177,2]
[350052766,1737593447380,-249.739959,0.00019177,2]